fUSD/lending_fUSD_20250519
["ID","MTS","AMOUNT","RATE_DAILY","PERIOD"]
[361631635,1747654240893,-153.515525,0.00013698,2]
[361631636,1747654240902,-420.0,0.00013698,2]
[361631637,1747654240912,-420.0,0.00013698,2]
[361631638,1747654240921,-420.0,0.00013698,2]
[361631639,1747654240931,-471.08650507,0.00013698,2]
[361631640,1747654240940,-400.0,0.00013698,2]
[361631641,1747654240950,-420.0,0.00013698,2]
[361631642,1747654240959,-400.0,0.00013698,2]
[361631643,1747654240968,-420.0,0.00013698,2]
[361631644,1747654240977,-420.0,0.00013698,2]
[361631645,1747654240986,-420.0,0.00013698,2]
[361631646,1747654240996,-400.0,0.00013698,2]
[361631647,1747654241006,-420.0,0.00013698,2]
[361631648,1747654241016,-420.0,0.00013698,2]
[361631649,1747654241026,-420.0,0.00013698,2]
[361631650,1747654241036,-400.0,0.00013698,2]
[361631651,1747654241045,-440.0,0.00013698,2]
[361631652,1747654241054,-420.0,0.00013698,2]
[361631653,1747654241063,-400.0,0.00013698,2]
[361631654,1747654241073,-151.0,0.00013698,2]
[361631655,1747654241083,-151.0,0.00013698,2]
[361631656,1747654241092,-300.0,0.00013698,2]
[361631657,1747654241101,-480.93,0.00013698,2]
[361631658,1747654241111,-539.58,0.00013698,2]
[361631659,1747654241120,-420.0,0.00013698,2]
[361631660,1747654241129,-380.0,0.00013698,2]
[361631661,1747654241138,-420.0,0.00013698,2]
[361631662,1747654241148,-409.15142023,0.00013698,2]
[361631663,1747654241157,-400.0,0.00013698,2]
[361631664,1747654241167,-360.0,0.00013698,2]
[361631665,1747654241181,-420.0,0.00013698,2]
[361631666,1747654241190,-420.0,0.00013698,2]
[361631667,1747654241200,-420.0,0.00013698,2]
[361631668,1747654241209,-703.68,0.00013698,2]
[361631669,1747654241219,-420.0,0.00013698,2]
[361631670,1747654241228,-380.0,0.00013698,2]
[361631671,1747654241237,-420.0,0.00013698,2]
[361631672,1747654241246,-346.61584979,0.00013698,2]
[361631673,1747654241256,-380.0,0.00013698,2]
[361631674,1747654241266,-400.0,0.00013698,2]
[361631675,1747654241275,-420.0,0.00013698,2]
[361631676,1747654241285,-383.13578141,0.00013698,2]
[361631677,1747654241295,-507.26,0.00013698,2]
[361631678,1747654241304,-420.0,0.00013698,2]
[361631679,1747654241313,-380.0,0.00013698,2]
[361631680,1747654241323,-151.0,0.00013698,2]
[361631681,1747654241332,-349.65599488,0.00013698,2]
[361631682,1747654241593,-420.0,0.00013698,2]
[361631683,1747654241603,-420.0,0.00013698,2]
[361631684,1747654241612,-151.0,0.00013698,2]
[361631685,1747654241621,-420.0,0.00013698,2]
[361631686,1747654241630,-433.71,0.00013698,2]
[361631687,1747654241639,-151.0,0.00013698,2]
[361631688,1747654241649,-151.0,0.00013698,2]
[361631689,1747654241658,-420.0,0.00013698,2]
[361631690,1747654241667,-420.0,0.00013698,2]
[361631691,1747654241677,-444.13,0.00013698,2]
[361631692,1747654241686,-400.0,0.00013698,2]
[361631693,1747654241695,-520.93095857,0.00013698,2]
[361631694,1747654241704,-400.0,0.00013698,2]
[361631695,1747654241714,-151.0,0.00013698,2]
[361631696,1747654241723,-420.0,0.00013698,2]
[361631697,1747654241732,-420.0,0.00013698,2]
[361631698,1747654241742,-420.0,0.00013698,2]
[361631699,1747654241751,-400.0,0.00013698,2]
[361631700,1747654241761,-420.0,0.00013698,2]
[361631701,1747654241770,-420.0,0.00013698,2]
[361631702,1747654241779,-151.0,0.00013698,2]
[361631703,1747654241788,-7507.569964,0.00013698,2]
[361631704,1747654241798,-400.0,0.00013698,2]
[361631705,1747654241807,-420.0,0.00013698,2]
[361631706,1747654241816,-420.0,0.00013698,2]
[361631707,1747654241826,-420.0,0.00013698,2]
[361631708,1747654241836,-7507.569964,0.00013698,2]
[361631709,1747654241845,-151.0,0.00013698,2]
[361631710,1747654241854,-632.26,0.00013698,2]
[361631711,1747654241863,-483.78685597,0.00013698,2]
[361631712,1747654241873,-420.0,0.00013698,2]
[361631713,1747654241882,-597.0,0.00013698,2]
[361631714,1747654241891,-480.34,0.00013698,2]
[361631715,1747654241901,-151.0,0.00013698,2]
[361631716,1747654241910,-400.0,0.00013698,2]
[361631717,1747654241920,-191.516233,0.00013698,2]
[361631718,1747654241929,-400.58935804,0.00013698,2]
[361631719,1747654241938,-151.0,0.00013698,2]
[361631720,1747654241947,-151.0,0.00013698,2]
[361631721,1747654241956,-848.26,0.00013698,2]
[361631722,1747654241965,-246.243721,0.00013698,2]
[361631723,1747654241975,-420.0,0.00013698,2]
[361631724,1747654241984,-223.54144,0.00013698,2]
[361631725,1747654241993,-400.0,0.00013698,2]
[361631726,1747654242002,-420.0,0.00013698,2]
[361631727,1747654242011,-420.0,0.00013698,2]
[361631728,1747654242021,-400.0,0.00013698,2]
[361631729,1747654242030,-246.243721,0.00013698,2]
[361631730,1747654242039,-488.33182911,0.00013698,2]
[361631731,1747654242047,-623.82,0.00013698,2]
[361631732,1747654242056,-420.0,0.00013698,2]
[361631733,1747654242065,-370.09594008,0.00013698,2]
[361631734,1747654242074,-420.0,0.00013698,2]
[361631735,1747654242083,-567.967943,0.00013698,2]
[361631736,1747654242092,-302.47264962,0.00013698,2]
[361631737,1747654242102,-504.45102513,0.00013698,2]
[361631738,1747654242111,-300.0,0.00013698,2]
[361631739,1747654242121,-622.77,0.00013698,2]
[361631740,1747654242130,-420.0,0.00013698,2]
[361631741,1747654242139,-567.967943,0.00013698,2]
[361631742,1747654242148,-420.0,0.00013698,2]
[361631744,1747654242157,-420.0,0.00013698,2]
[361631745,1747654242166,-400.0,0.00013698,2]
[361631746,1747654242179,-474.18,0.00013698,2]
[361631747,1747654242188,-420.0,0.00013698,2]
[361631748,1747654242198,-475.95,0.00013698,2]
[361631749,1747654242207,-151.0,0.00013698,2]
[361631750,1747654242218,-420.0,0.00013698,2]
[361631751,1747654242227,-420.0,0.00013698,2]
[361631752,1747654242236,-167.487296,0.00013698,2]
[361631753,1747654242246,-468.61,0.00013698,2]
[361631754,1747654242256,-400.0,0.00013698,2]
[361631755,1747654242266,-420.0,0.00013698,2]
[361631756,1747654242275,-528.09,0.00013698,2]
[361631757,1747654242285,-420.0,0.00013698,2]
[361631760,1747654242295,-420.0,0.00013698,2]
[361631762,1747654242305,-167.487296,0.00013698,2]
[361631764,1747654242314,-420.0,0.00013698,2]
[361631765,1747654242324,-150.0,0.00013698,2]
[361631767,1747654242333,-420.0,0.00013698,2]
[361631769,1747654242343,-499.1809085,0.00013698,2]
[361631771,1747654242353,-151.455029,0.00013698,2]
[361631772,1747654242362,-420.0,0.00013698,2]
[361631773,1747654242372,-420.0,0.00013698,2]
[361631774,1747654242382,-504.52907355,0.00013698,2]
[361631775,1747654242391,-420.0,0.00013698,2]
[361631776,1747654242400,-420.0,0.00013698,2]
[361631777,1747654242410,-702.58,0.00013698,2]
[361631778,1747654242420,-420.0,0.00013698,2]
[361631779,1747654242429,-420.0,0.00013698,2]
[361631781,1747654242439,-420.0,0.00013698,2]
[361631782,1747654242448,-400.0,0.00013698,2]
[361631783,1747654242457,-420.0,0.00013698,2]
[361631784,1747654242467,-1010.59104096,0.00013698,2]
[361631785,1747654242476,-420.0,0.00013698,2]
[361631786,1747654242485,-442.11,0.00013698,2]
[361631787,1747654242495,-420.0,0.00013698,2]
[361631788,1747654242505,-401.79058086,0.00013698,2]
[361631789,1747654242514,-933.92,0.00013698,2]
[361631790,1747654242524,-579.49,0.00013698,2]
[361631791,1747654242533,-579.54,0.00013698,2]
[361631792,1747654242543,-151.0,0.00013698,2]
[361631793,1747654242553,-420.0,0.00013698,2]
[361631794,1747654242562,-400.0,0.00013698,2]
[361631795,1747654242572,-701.86,0.00013698,2]
[361631796,1747654242582,-218.2750639,0.00013698,2]
[361631797,1747654242591,-487.66,0.00013698,2]
[361631798,1747654242600,-453.19,0.00013698,2]
[361631799,1747654242610,-400.0,0.00013698,2]
[361631800,1747654242619,-151.0,0.00013698,2]
[361631801,1747654242629,-400.0,0.00013698,2]
[361631802,1747654242638,-420.0,0.00013698,2]
[361631803,1747654242647,-507.6360991,0.00013698,2]
[361631804,1747654242658,-420.0,0.00013698,2]
[361631805,1747654242668,-420.0,0.00013698,2]
[361631806,1747654242677,-877.43,0.00013698,2]
[361631807,1747654242687,-420.0,0.00013698,2]
[361631808,1747654242696,-151.0,0.00013698,2]
[361631809,1747654242705,-618.7,0.00013698,2]
[361631810,1747654242715,-420.0,0.00013698,2]
[361631811,1747654242724,-420.0,0.00013698,2]
[361631812,1747654242733,-420.0,0.00013698,2]
[361631813,1747654242742,-453.96,0.00013698,2]
[361631814,1747654242751,-529.85,0.00013698,2]
[361631815,1747654242760,-1162.45,0.00013698,2]
[361631816,1747654242769,-420.0,0.00013698,2]
[361631817,1747654242779,-420.0,0.00013698,2]
[361631818,1747654242788,-400.0,0.00013698,2]
[361631819,1747654242797,-424.93,0.00013698,2]
[361631820,1747654242806,-506.64,0.00013698,2]
[361631821,1747654242815,-420.0,0.00013698,2]
[361631822,1747654242825,-1035.95,0.00013698,2]
[361631823,1747654242834,-420.0,0.00013698,2]
[361631824,1747654242843,-400.0,0.00013698,2]
[361631825,1747654242853,-325.62048889,0.00013698,2]
[361631827,1747654242863,-420.0,0.00013698,2]
[361631828,1747654242872,-420.0,0.00013698,2]
[361631830,1747654242881,-151.0,0.00013698,2]
[361631832,1747654242891,-420.0,0.00013698,2]
[361631834,1747654242900,-420.0,0.00013698,2]
[361631835,1747654242910,-462.51915197,0.00013698,2]
[361631837,1747654242919,-440.32,0.00013698,2]
[361631839,1747654242929,-420.0,0.00013698,2]
[361631841,1747654242938,-504.81,0.00013698,2]
[361631843,1747654242948,-504.81,0.00013698,2]
[361631845,1747654242957,-504.81,0.00013698,2]
[361631847,1747654242966,-669.09,0.00013698,2]
[361631849,1747654242976,-621.05,0.00013698,2]
[361631851,1747654242985,-420.0,0.00013698,2]
[361631853,1747654242995,-407.86250084,0.00013698,2]
[361631855,1747654243005,-420.0,0.00013698,2]
[361631857,1747654243015,-420.0,0.00013698,2]
[361631860,1747654243024,-400.0,0.00013698,2]
[361631863,1747654243033,-151.0,0.00013698,2]
[361631865,1747654243042,-420.0,0.00013698,2]
[361631867,1747654243052,-420.0,0.00013698,2]
[361631869,1747654243061,-400.0,0.00013698,2]
[361631870,1747654243069,-420.0,0.00013698,2]
[361631872,1747654243079,-411.10412221,0.00013698,2]
[361631874,1747654243088,-151.0,0.00013698,2]
[361631876,1747654243097,-151.0,0.00013698,2]
[361631878,1747654243106,-420.0,0.00013698,2]
[361631880,1747654243115,-420.0,0.00013698,2]
[361631882,1747654243124,-420.0,0.00013698,2]
[361631884,1747654243133,-151.0,0.00013698,2]
[361631886,1747654243143,-550.57,0.00013698,2]
[361631888,1747654243152,-420.0,0.00013698,2]
[361631890,1747654243161,-151.0,0.00013698,2]
[361631892,1747654243171,-468.6,0.00013698,2]
[361631894,1747654243184,-431.05390832,0.00013698,2]
[361631896,1747654243194,-844.66,0.00013698,2]
[361631898,1747654243203,-420.0,0.00013698,2]
[361631900,1747654243213,-420.0,0.00013698,2]
[361631902,1747654243223,-400.0,0.00013698,2]
[361631904,1747654243234,-420.0,0.00013698,2]
[361631906,1747654243243,-767.22,0.00013698,2]
[361631908,1747654243254,-400.0,0.00013698,2]
[361631910,1747654243265,-151.0,0.00013698,2]
[361631912,1747654243274,-402.88886582,0.00013698,2]
[361631914,1747654243284,-488.52,0.00013698,2]
[361631916,1747654243293,-926.37,0.00013698,2]
[361631918,1747654243303,-420.0,0.00013698,2]
[361631920,1747654243312,-403.33310977,0.00013698,2]
[361631922,1747654243321,-420.0,0.00013698,2]
[361631924,1747654243331,-420.0,0.00013698,2]
[361631926,1747654243340,-1108.92,0.00013698,2]
[361631928,1747654243350,-448.29785865,0.00013698,2]
[361631930,1747654243360,-420.0,0.00013698,2]
[361631932,1747654243369,-917.8,0.00013698,2]
[361631934,1747654243379,-376.17050034,0.00013698,2]
[361631936,1747654243388,-420.0,0.00013698,2]
[361631938,1747654243398,-506.74615216,0.00013698,2]
[361631940,1747654243407,-420.0,0.00013698,2]
[361631941,1747654243417,-401.61153516,0.00013698,2]
[361631942,1747654243427,-420.0,0.00013698,2]
[361631943,1747654243436,-420.0,0.00013698,2]
[361631944,1747654243446,-420.0,0.00013698,2]
[361631945,1747654243456,-685.7,0.00013698,2]
[361631946,1747654243465,-575.05,0.00013698,2]
[361631947,1747654243475,-420.0,0.00013698,2]
[361631948,1747654243484,-400.0,0.00013698,2]
[361631949,1747654243493,-400.0,0.00013698,2]
[361631950,1747654243502,-1103.47,0.00013698,2]
[361631951,1747654243511,-420.0,0.00013698,2]
[361631952,1747654243520,-546.69,0.00013698,2]
[361631953,1747654243530,-420.0,0.00013698,2]
[361631954,1747654243539,-420.0,0.00013698,2]
[361631955,1747654243548,-494.13,0.00013698,2]
[361631956,1747654243558,-420.0,0.00013698,2]
[361631957,1747654243567,-420.0,0.00013698,2]
[361631958,1747654243576,-420.0,0.00013698,2]
[361631959,1747654243585,-427.02,0.00013698,2]
[361631960,1747654243594,-410.63176689,0.00013698,2]
[361631961,1747654243604,-656.88,0.00013698,2]
[361631962,1747654243614,-885.36,0.00013698,2]
[361631963,1747654243623,-360.0,0.00013698,2]
[361631964,1747654243632,-563.65,0.00013698,2]
[361631965,1747654243642,-420.0,0.00013698,2]
[361631966,1747654243651,-420.0,0.00013698,2]
[361631967,1747654243661,-544.01,0.00013698,2]
[361631968,1747654243671,-150.0,0.00013698,2]
[361631969,1747654243680,-420.0,0.00013698,2]
[361631970,1747654243690,-420.0,0.00013698,2]
[361631971,1747654243699,-150.0,0.00013698,2]
[361631972,1747654243708,-154.56516708,0.00013698,2]
[361631973,1747654243718,-420.0,0.00013698,2]
[361631974,1747654243727,-402.14418664,0.00013698,2]
[361631975,1747654243737,-150.0,0.00013698,2]
[361631976,1747654243746,-420.0,0.00013698,2]
[361631977,1747654243756,-150.0,0.00013698,2]
[361631978,1747654243765,-151.0,0.00013698,2]
[361631979,1747654243774,-420.0,0.00013698,2]
[361631980,1747654243784,-400.0,0.00013698,2]
[361631981,1747654243794,-420.0,0.00013698,2]
[361631982,1747654243803,-151.0,0.00013698,2]
[361631983,1747654243813,-155.35881018,0.00013698,2]
[361631984,1747654243822,-1728.12,0.00013698,2]
[361631985,1747654243832,-420.0,0.00013698,2]
[361631986,1747654243841,-420.0,0.00013698,2]
[361631987,1747654243851,-400.0,0.00013698,2]
[361631988,1747654243860,-420.0,0.00013698,2]
[361631989,1747654243869,-400.0,0.00013698,2]
[361631990,1747654243879,-509.12,0.00013698,2]
[361631991,1747654243888,-543.46590694,0.00013698,2]
[361631992,1747654243897,-806.24,0.00013698,2]
[361631993,1747654243906,-420.0,0.00013698,2]
[361631994,1747654243915,-400.0,0.00013698,2]
[361631995,1747654243925,-420.0,0.00013698,2]
[361631996,1747654243934,-420.0,0.00013698,2]
[361631997,1747654243945,-420.0,0.00013698,2]
[361631998,1747654243954,-555.03,0.00013698,2]
[361631999,1747654243964,-420.0,0.00013698,2]
[361632000,1747654243974,-420.0,0.00013698,2]
[361632001,1747654243983,-420.0,0.00013698,2]
[361632002,1747654243991,-432.83,0.00013698,2]
[361632003,1747654244000,-400.0,0.00013698,2]
[361632004,1747654244009,-420.0,0.00013698,2]
[361632005,1747654244017,-565.3,0.00013698,2]
[361632006,1747654244025,-420.0,0.00013698,2]
[361632007,1747654244033,-420.0,0.00013698,2]
[361632008,1747654244041,-400.0,0.00013698,2]
[361632009,1747654244049,-420.0,0.00013698,2]
[361632010,1747654244058,-400.0,0.00013698,2]
[361632011,1747654244066,-443.91,0.00013698,2]
[361632012,1747654244075,-397.3076851,0.00013698,2]
[361632013,1747654244083,-420.0,0.00013698,2]
[361632014,1747654244091,-151.0,0.00013698,2]
[361632015,1747654244100,-151.0,0.00013698,2]
[361632016,1747654244110,-420.0,0.00013698,2]
[361632017,1747654244120,-567.22,0.00013698,2]
[361632018,1747654244130,-151.59446,0.00013698,2]
[361632019,1747654244139,-400.34836304,0.00013698,2]
[361632020,1747654244148,-420.0,0.00013698,2]
[361632021,1747654244158,-493.2,0.00013698,2]
[361632022,1747654244168,-420.0,0.00013698,2]
[361632023,1747654244183,-420.0,0.00013698,2]
[361632024,1747654244192,-420.0,0.00013698,2]
[361632025,1747654244202,-420.0,0.00013698,2]
[361632026,1747654244211,-694.48,0.00013698,2]
[361632027,1747654244222,-420.0,0.00013698,2]
[361632028,1747654244232,-832.76,0.00013698,2]
[361632029,1747654244243,-420.0,0.00013698,2]
[361632030,1747654244254,-380.0,0.00013698,2]
[361632031,1747654244264,-655.62,0.00013698,2]
[361632032,1747654244274,-420.0,0.00013698,2]
[361632033,1747654244283,-420.0,0.00013698,2]
[361632034,1747654244293,-420.0,0.00013698,2]
[361632035,1747654244303,-420.0,0.00013698,2]
[361632036,1747654244313,-420.0,0.00013698,2]
[361632037,1747654244322,-420.0,0.00013698,2]
[361632038,1747654244332,-420.0,0.00013698,2]
[361632039,1747654244341,-732.91,0.00013698,2]
[361632040,1747654244350,-636.42,0.00013698,2]
[361632041,1747654244359,-495.53,0.00013698,2]
[361632042,1747654244368,-151.0,0.00013698,2]
[361632043,1747654244376,-151.0,0.00013698,2]
[361632044,1747654244385,-420.0,0.00013698,2]
[361632045,1747654244394,-650.19,0.00013698,2]
[361632046,1747654244403,-151.0,0.00013698,2]
[361632047,1747654244413,-634.56,0.00013698,2]
[361632048,1747654244422,-420.0,0.00013698,2]
[361632049,1747654244432,-400.0,0.00013698,2]
[361632050,1747654244441,-484.99,0.00013698,2]
[361632051,1747654244449,-420.0,0.00013698,2]
[361632052,1747654244458,-518.18,0.00013698,2]
[361632053,1747654244466,-611.9,0.00013698,2]
[361632054,1747654244474,-423.9,0.00013698,2]
[361632055,1747654244482,-400.0,0.00013698,2]
[361632056,1747654244491,-420.0,0.00013698,2]
[361632057,1747654244500,-420.0,0.00013698,2]
[361632058,1747654244510,-450.4,0.00013698,2]
[361632059,1747654244519,-420.0,0.00013698,2]
[361632060,1747654244529,-380.0,0.00013698,2]
[361632061,1747654244538,-400.81584776,0.00013698,2]
[361632062,1747654244548,-420.0,0.00013698,2]
[361632063,1747654244558,-741.78,0.00013698,2]
[361632064,1747654244567,-824.27,0.00013698,2]
[361632065,1747654244576,-151.0,0.00013698,2]
[361632066,1747654244586,-420.0,0.00013698,2]
[361632067,1747654244596,-151.0,0.00013698,2]
[361632068,1747654244605,-420.0,0.00013698,2]
[361632069,1747654244615,-151.0,0.00013698,2]
[361632070,1747654244624,-420.0,0.00013698,2]
[361632071,1747654244634,-420.0,0.00013698,2]
[361632072,1747654244643,-420.0,0.00013698,2]
[361632073,1747654244652,-557.47,0.00013698,2]
[361632074,1747654244662,-629.479558,0.00013698,2]
[361632075,1747654244671,-629.479558,0.00013698,2]
[361632076,1747654244680,-595.7,0.00013698,2]
[361632077,1747654244690,-223.865706,0.00013698,2]
[361632078,1747654244700,-223.865706,0.00013698,2]
[361632079,1747654244710,-151.0,0.00013698,2]
[361632080,1747654244719,-400.0,0.00013698,2]
[361632081,1747654244728,-151.0,0.00013698,2]
[361632082,1747654244738,-629.479558,0.00013698,2]
[361632083,1747654244747,-629.479558,0.00013698,2]
[361632084,1747654244757,-400.0,0.00013698,2]
[361632085,1747654244766,-420.0,0.00013698,2]
[361632086,1747654244775,-223.865706,0.00013698,2]
[361632087,1747654244784,-223.865706,0.00013698,2]
[361632088,1747654244794,-400.0,0.00013698,2]
[361632089,1747654244803,-501.07560789,0.00013698,2]
[361632090,1747654244812,-420.0,0.00013698,2]
[361632091,1747654244822,-420.0,0.00013698,2]
[361632092,1747654244832,-775.54,0.00013698,2]
[361632093,1747654244842,-887.56,0.00013698,2]
[361632094,1747654244851,-320.0,0.00013698,2]
[361632095,1747654244861,-420.0,0.00013698,2]
[361632096,1747654244870,-420.0,0.00013698,2]
[361632097,1747654244880,-420.0,0.00013698,2]
[361632098,1747654244889,-420.0,0.00013698,2]
[361632099,1747654244906,-721.33,0.00013698,2]
[361632100,1747654244916,-420.0,0.00013698,2]
[361632101,1747654244926,-420.0,0.00013698,2]
[361632102,1747654244935,-381.75,0.00013698,2]
[361632103,1747654244945,-584.85,0.00013698,2]
[361632104,1747654244954,-420.0,0.00013698,2]
[361632105,1747654244964,-420.0,0.00013698,2]
[361632106,1747654244973,-320.0,0.00013698,2]
[361632107,1747654244983,-400.82249255,0.00013698,2]
[361632108,1747654244992,-681.71,0.00013698,2]
[361632109,1747654245002,-420.0,0.00013698,2]
[361632110,1747654245011,-400.0,0.00013698,2]
[361632111,1747654245020,-774.98,0.00013698,2]
[361632112,1747654245029,-420.0,0.00013698,2]
[361632113,1747654245038,-420.0,0.00013698,2]
[361632114,1747654245047,-1187.0,0.00013698,2]
[361632115,1747654245056,-420.0,0.00013698,2]
[361632116,1747654245065,-1187.0,0.00013698,2]
[361632117,1747654245075,-1187.0,0.00013698,2]
[361632118,1747654245084,-1187.0,0.00013698,2]
[361632119,1747654245093,-1187.0,0.00013698,2]
[361632120,1747654245102,-1187.0,0.00013698,2]
[361632121,1747654245112,-1187.0,0.00013698,2]
[361632122,1747654245121,-470.96,0.00013698,2]
[361632123,1747654245130,-420.0,0.00013698,2]
[361632124,1747654245139,-420.0,0.00013698,2]
[361632125,1747654245149,-406.72939467,0.00013698,2]
[361632127,1747654245158,-420.0,0.00013698,2]
[361632128,1747654245168,-1187.0,0.00013698,2]
[361632129,1747654245185,-420.0,0.00013698,2]
[361632130,1747654245194,-1187.0,0.00013698,2]
[361632131,1747654245203,-420.0,0.00013698,2]
[361632133,1747654245213,-1187.0,0.00013698,2]
[361632135,1747654245222,-1670.28,0.00013698,2]
[361632136,1747654245232,-772.30973703,0.00013698,2]
[361632137,1747654245243,-1187.0,0.00013698,2]
[361632138,1747654245254,-420.0,0.00013698,2]
[361632139,1747654245264,-420.0,0.00013698,2]
[361632140,1747654245273,-500.0,0.00013698,2]
[361632141,1747654245283,-420.0,0.00013698,2]
[361632142,1747654245292,-420.0,0.00013698,2]
[361632143,1747654245301,-948.28,0.00013698,2]
[361632144,1747654245311,-151.0,0.00013698,2]
[361632145,1747654245320,-593.03,0.00013698,2]
[361632146,1747654245330,-1097.81,0.00013698,2]
[361632147,1747654245339,-420.0,0.00013698,2]
[361632148,1747654245349,-400.0,0.00013698,2]
[361632149,1747654245358,-420.0,0.00013698,2]
[361632150,1747654245367,-420.0,0.00013698,2]
[361632151,1747654245376,-420.0,0.00013698,2]
[361632152,1747654245386,-683.78,0.00013698,2]
[361632153,1747654245395,-470.57,0.00013698,2]
[361632154,1747654245405,-151.0,0.00013698,2]
[361632155,1747654245414,-420.0,0.00013698,2]
[361632156,1747654245423,-151.0,0.00013698,2]
[361632157,1747654245433,-420.0,0.00013698,2]
[361632158,1747654245443,-170.559624,0.00013698,2]
[361632159,1747654245452,-1807.59,0.00013698,2]
[361632160,1747654245462,-280.0,0.00013698,2]
[361632161,1747654245473,-400.0,0.00013698,2]
[361632162,1747654245483,-420.0,0.00013698,2]
[361632163,1747654245492,-420.0,0.00013698,2]
[361632164,1747654245725,-1147.28,0.00013698,2]
[361632165,1747654245736,-420.0,0.00013698,2]
[361632166,1747654245746,-556.14,0.00013698,2]
[361632167,1747654245755,-420.0,0.00013698,2]
[361632168,1747654245765,-919.28,0.00013698,2]
[361632169,1747654245775,-3722.67,0.00013698,2]
[361632170,1747654245784,-479.76,0.00013698,2]
[361632171,1747654245794,-420.0,0.00013698,2]
[361632172,1747654245803,-400.0,0.00013698,2]
[361632173,1747654245812,-751.48,0.00013698,2]
[361632174,1747654245822,-420.0,0.00013698,2]
[361632175,1747654245831,-420.0,0.00013698,2]
[361632176,1747654245841,-22881.3086682,0.00013698,2]
[361632202,1747654246320,-22004.2954165,0.00013698,2]
[361632203,1747654246357,-558.89350208,0.00013698,2]
[361632204,1747654246369,-660.0,0.00013698,2]
[361632205,1747654246666,-108.89528868,0.00013698,2]
[361632206,1747654246682,-4824.05,0.00013698,2]
[361632207,1747654247586,-203.0,0.00012248,2]
[361632208,1747654247596,-41361.46912228,0.00013698,2]
[361632209,1747654247608,-51760.77800226,0.00013698,2]
[361632210,1747654247618,-532.34,0.00013698,2]
[361632211,1747654247627,-420.0,0.00013698,2]
[361632212,1747654247636,-340.0,0.00013698,2]
[361632213,1747654247646,-384.96061157,0.00013698,2]
[361632214,1747654247656,-3421.59,0.00013698,2]
[361632215,1747654247666,-420.0,0.00013698,2]
[361632216,1747654247676,-1038.69,0.00013698,2]
[361632217,1747654247685,-498.56981276,0.00013698,2]
[361632218,1747654247694,-644.36,0.00013698,2]
[361632219,1747654247703,-977.98,0.00013698,2]
[361632220,1747654247713,-1005.02,0.00013698,2]
[361632221,1747654247722,-582.64,0.00013698,2]
[361632222,1747654247731,-840.97,0.00013698,2]
[361632223,1747654247741,-380.0,0.00013698,2]
[361632224,1747654247750,-6861.18,0.00013698,2]
[361632225,1747654247759,-1271.86,0.00013698,2]
[361632226,1747654247769,-500.0,0.00013698,2]
[361632227,1747654247857,-852.51,0.00013698,2]
[361632228,1747654247867,-1021.52,0.00013698,2]